fUST/lending_fUST_20250713
["ID","MTS","AMOUNT","RATE_DAILY","PERIOD"]
[371553983,1752346255005,-500.0,0.00018837,2]
[371553984,1752346255014,-606.77143545,0.00018837,2]
[371553985,1752346255024,-500.0,0.00018837,2]
[371553986,1752346255034,-500.0,0.00018837,2]
[371553987,1752346255043,-500.0,0.00018837,2]
[371553988,1752346255053,-500.0,0.00018837,2]
[371553989,1752346255063,-489.01177667,0.00018837,2]
[371553990,1752346255074,-500.0,0.00018837,2]
[371553991,1752346255083,-500.0,0.00018837,2]
[371553992,1752346255093,-500.0,0.00018837,2]
[371553993,1752346255103,-500.0,0.00018837,2]
[371553994,1752346255113,-500.0,0.00018837,2]
[371553995,1752346255122,-500.0,0.00018837,2]
[371553996,1752346255132,-500.0,0.00018837,2]
[371553997,1752346255141,-500.0,0.00018837,2]
[371553998,1752346255151,-500.0,0.00018837,2]
[371553999,1752346255160,-500.0,0.00018837,2]
[371554000,1752346255169,-500.0,0.00018837,2]
[371554001,1752346255178,-500.0,0.00018837,2]
[371554002,1752346255188,-500.0,0.00018837,2]
[371554003,1752346255197,-500.0,0.00018837,2]
[371554004,1752346255211,-500.0,0.00018837,2]
[371554005,1752346255220,-500.0,0.00018837,2]
[371554006,1752346255229,-500.0,0.00018837,2]
[371554007,1752346255239,-500.0,0.00018837,2]
[371554008,1752346255250,-500.0,0.00018837,2]
[371554009,1752346255260,-500.0,0.00018837,2]
[371554010,1752346255270,-460.0,0.0001884,2]
[371554011,1752346255280,-915.83,0.0001884,2]
[371554012,1752346255290,-864.3,0.0001884,2]
[371554013,1752346255299,-460.0,0.0001884,2]
[371554014,1752346255309,-1436.56,0.0001884,2]
[371554015,1752346255319,-460.0,0.0001884,2]
[371554016,1752346255329,-631.29,0.0001884,2]
[371554017,1752346255338,-874.74,0.0001884,2]
[371554018,1752346255349,-460.0,0.0001884,2]
[371554019,1752346255358,-2721.35,0.0001884,2]
[371554020,1752346255367,-857.84,0.0001884,2]
[371554021,1752346255377,-460.0,0.0001884,2]
[371554022,1752346255386,-1500.0,0.00018843,2]
[371554023,1752346255396,-151.0,0.000189,2]
[371554024,1752346255404,-460.0,0.00018904,2]
[371554025,1752346255413,-460.0,0.00018904,2]
[371554026,1752346255422,-460.0,0.00018904,2]
[371554027,1752346255431,-460.0,0.00018904,2]
[371554028,1752346255440,-460.0,0.00018904,2]
[371554029,1752346255449,-460.0,0.00018904,2]
[371554030,1752346255459,-274.56584994,0.00018904,2]
[371554031,1752346255468,-460.0,0.00018904,2]
[371554032,1752346255477,-460.0,0.00018904,2]
[371554033,1752346255486,-476.83,0.00018904,2]
[371554034,1752346255495,-460.0,0.00018904,2]
[371554035,1752346255504,-460.0,0.00018904,2]
[371554036,1752346255513,-480.52,0.00018904,2]
[371554037,1752346255522,-553.25,0.00018904,2]
[371554038,1752346255531,-460.0,0.00018904,2]
[371554039,1752346255540,-505.0,0.00018904,2]
[371554040,1752346255549,-460.0,0.00018904,2]
[371554041,1752346255558,-460.0,0.00018904,2]
[371554042,1752346255670,-175.51,0.00018904,2]
[371554043,1752346255680,-460.0,0.00018904,2]
[371554044,1752346255689,-460.0,0.00018904,2]
[371554045,1752346255698,-460.0,0.00018904,2]
[371554046,1752346255707,-1040.11,0.00018904,2]
[371554047,1752346255717,-460.0,0.00018904,2]
[371554048,1752346255726,-1869.82,0.00018904,2]
[371554049,1752346255735,-460.0,0.00018904,2]
[371554050,1752346255745,-460.0,0.00018904,2]
[371554051,1752346255755,-460.0,0.00018904,2]
[371554052,1752346255764,-1640.32,0.00018904,2]
[371554053,1752346255774,-460.0,0.00018904,2]
[371554054,1752346255784,-460.0,0.00018904,2]
[371554055,1752346255793,-460.0,0.00018904,2]
[371554056,1752346255803,-1054.29,0.00018904,2]
[371554057,1752346255813,-654.76,0.00018904,2]
[371554058,1752346255822,-460.0,0.00018904,2]
[371554059,1752346255832,-460.0,0.00018904,2]
[371554060,1752346255841,-460.0,0.00018904,2]
[371554061,1752346255851,-460.0,0.00018904,2]
[371554062,1752346255860,-460.0,0.00018904,2]
[371554063,1752346255869,-2105.93,0.00018904,2]
[371554064,1752346255879,-460.0,0.00018904,2]
[371554065,1752346255889,-460.0,0.00018904,2]
[371554066,1752346255898,-460.0,0.00018904,2]
[371554067,1752346255907,-460.0,0.00018904,2]
[371554068,1752346255917,-574.78,0.00018904,2]
[371554069,1752346255927,-460.0,0.00018904,2]
[371554070,1752346255938,-460.0,0.00018904,2]
[371554071,1752346255947,-1182.37,0.00018904,2]
[371554072,1752346255957,-460.0,0.00018904,2]
[371554073,1752346255967,-460.0,0.00018904,2]
[371554074,1752346255977,-460.0,0.00018904,2]
[371554075,1752346255987,-460.0,0.00018904,2]
[371554076,1752346255996,-506.15,0.00018904,2]
[371554077,1752346256006,-460.0,0.00018904,2]
[371554078,1752346256017,-2626.11862193,0.00018964,2]
[371554079,1752346256026,-2500.0,0.00018964,2]
[371554080,1752346256036,-1387.23066608,0.00019003,2]
[371554081,1752346256045,-151.0,0.000191,2]
[371554082,1752346256055,-460.0,0.00019114,2]
[371554083,1752346256064,-915.83,0.00019114,2]
[371554084,1752346256074,-864.3,0.00019114,2]
[371554085,1752346256084,-460.0,0.00019114,2]
[371554086,1752346256093,-1436.56,0.00019114,2]
[371554087,1752346256103,-460.0,0.00019114,2]
[371554088,1752346256114,-631.29,0.00019114,2]
[371554089,1752346256124,-874.74,0.00019114,2]
[371554090,1752346256135,-555.8,0.00019114,2]
[371554091,1752346256146,-2721.35,0.00019114,2]
[371554092,1752346256156,-857.84,0.00019114,2]
[371554093,1752346256167,-460.0,0.00019114,2]
[371554094,1752346256177,-460.0,0.00019178,2]
[371554095,1752346256186,-460.0,0.00019178,2]
[371554096,1752346256196,-460.0,0.00019178,2]
[371554097,1752346256209,-460.0,0.00019178,2]
[371554098,1752346256218,-460.0,0.00019178,2]
[371554099,1752346256228,-460.0,0.00019178,2]
[371554100,1752346256238,-460.0,0.00019178,2]
[371554101,1752346256249,-460.0,0.00019178,2]
[371554102,1752346256260,-476.83,0.00019178,2]
[371554103,1752346256269,-460.0,0.00019178,2]
[371554104,1752346256279,-460.0,0.00019178,2]
[371554105,1752346256289,-480.52,0.00019178,2]
[371554106,1752346256299,-553.25,0.00019178,2]
[371554107,1752346256308,-565.37,0.00019178,2]
[371554108,1752346256318,-505.0,0.00019178,2]
[371554109,1752346256327,-460.0,0.00019178,2]
[371554110,1752346256337,-385.5,0.00019178,2]
[371554111,1752346256346,-460.0,0.00019178,2]
[371554112,1752346256356,-460.0,0.00019178,2]
[371554113,1752346256365,-460.0,0.00019178,2]
[371554114,1752346256375,-1040.11,0.00019178,2]
[371554115,1752346256385,-460.0,0.00019178,2]
[371554116,1752346256394,-1869.82,0.00019178,2]
[371554117,1752346256404,-460.0,0.00019178,2]
[371554118,1752346256413,-460.0,0.00019178,2]
[371554119,1752346256423,-460.0,0.00019178,2]
[371554120,1752346256432,-1640.32,0.00019178,2]
[371554121,1752346256442,-460.0,0.00019178,2]
[371554122,1752346256451,-460.0,0.00019178,2]
[371554123,1752346256460,-460.0,0.00019178,2]
[371554124,1752346256470,-1054.29,0.00019178,2]
[371554125,1752346256480,-654.76,0.00019178,2]
[371554126,1752346256489,-460.0,0.00019178,2]
[371554127,1752346256499,-460.0,0.00019178,2]
[371554128,1752346256508,-460.0,0.00019178,2]
[371554129,1752346256518,-460.0,0.00019178,2]
[371554130,1752346256527,-460.0,0.00019178,2]
[371554131,1752346256536,-2105.93,0.00019178,2]
[371554132,1752346256546,-460.0,0.00019178,2]
[371554133,1752346256556,-460.0,0.00019178,2]
[371554134,1752346256566,-460.0,0.00019178,2]
[371554135,1752346256576,-460.0,0.00019178,2]
[371554136,1752346256586,-574.78,0.00019178,2]
[371554137,1752346256596,-460.0,0.00019178,2]
[371554138,1752346256606,-460.0,0.00019178,2]
[371554139,1752346256616,-1182.37,0.00019178,2]
[371554140,1752346256626,-460.0,0.00019178,2]
[371554141,1752346256635,-460.0,0.00019178,2]
[371554142,1752346256646,-460.0,0.00019178,2]
[371554143,1752346256656,-506.15,0.00019178,2]
[371554144,1752346256665,-460.0,0.00019178,2]
[371554145,1752346256675,-666.0,0.00019178,2]
[371554146,1752346256685,-661.767978,0.00019178,2]
[371554147,1752346256694,-5000.0,0.00019178,2]
[371554148,1752346256704,-5000.0,0.00019178,2]
[371554149,1752346256714,-5000.0,0.00019178,2]
[371554150,1752346256725,-5000.0,0.00019178,2]
[371554151,1752346256735,-5000.0,0.00019178,2]
[371554152,1752346256746,-2010.35104184,0.00019178,2]
[371554153,1752346256755,-500.0,0.00019186,2]
[371554154,1752346256765,-500.97108494,0.00019186,2]
[371554155,1752346256774,-258.0,0.00019186,2]
[371554156,1752346256783,-500.0,0.00019186,2]
[371554157,1752346256792,-500.0,0.00019186,2]
[371554158,1752346256802,-500.0,0.00019186,2]
[371554159,1752346256811,-500.0,0.00019186,2]
[371554160,1752346256821,-500.0,0.00019186,2]
[371554161,1752346256830,-500.0,0.00019186,2]
[371554162,1752346256839,-500.0,0.00019186,2]
[371554163,1752346256849,-500.0,0.00019186,2]
[371554164,1752346256858,-29944.87,0.000192,2]
[371554165,1752346256868,-541.72,0.000192,2]
[371554166,1752346256877,-3745.95,0.000192,2]
[371554167,1752346256887,-5000.0,0.00019214,2]
[371554168,1752346256897,-1387.23066608,0.00019279,2]
[371554169,1752346256906,-100000.0,0.00019329,2]
[371554170,1752346256916,-1053.43802526,0.00019352,2]
[371554171,1752346256926,-915.83,0.00019388,2]
[371554172,1752346256935,-864.3,0.00019388,2]
[371554173,1752346256945,-460.0,0.00019388,2]
[371554174,1752346256954,-1436.56,0.00019388,2]
[371554175,1752346256964,-460.0,0.00019388,2]
[371554176,1752346256974,-631.29,0.00019388,2]
[371554177,1752346256984,-874.74,0.00019388,2]
[371554178,1752346256993,-2721.35,0.00019388,2]
[371554179,1752346257003,-857.84,0.00019388,2]
[371554180,1752346257013,-383.94856345,0.00019388,2]
[371554181,1752346257023,-460.0,0.00019452,2]
[371554182,1752346257032,-460.0,0.00019452,2]
[371554183,1752346257042,-460.0,0.00019452,2]
[371554184,1752346257051,-460.0,0.00019452,2]
[371554185,1752346257060,-460.0,0.00019452,2]
[371554186,1752346257069,-151.0,0.00019452,2]
[371554187,1752346257079,-460.0,0.00019452,2]
[371554188,1752346257088,-151.0,0.00019452,2]
[371554189,1752346257098,-156.58144289,0.00019452,2]
[371554190,1752346257108,-460.0,0.00019452,2]
[371554191,1752346257117,-476.83,0.00019452,2]
[371554192,1752346257127,-460.0,0.00019452,2]
[371554193,1752346257136,-480.52,0.00019452,2]
[371554194,1752346257146,-553.25,0.00019452,2]
[371554195,1752346257155,-505.0,0.00019452,2]
[371554196,1752346257165,-460.0,0.00019452,2]
[371554197,1752346257174,-460.0,0.00019452,2]
[371554198,1752346257185,-460.0,0.00019452,2]
[371554199,1752346257195,-460.0,0.00019452,2]
[371554200,1752346257209,-1040.11,0.00019452,2]
[371554201,1752346257219,-460.0,0.00019452,2]
[371554202,1752346257228,-1869.82,0.00019452,2]
[371554203,1752346257238,-460.0,0.00019452,2]
[371554204,1752346257248,-460.0,0.00019452,2]
[371554205,1752346257258,-460.0,0.00019452,2]
[371554206,1752346257268,-1640.32,0.00019452,2]
[371554207,1752346257278,-1678.0,0.00019452,2]
[371554208,1752346257289,-151.0,0.00019452,2]
[371554209,1752346257298,-500.0,0.00019452,2]
[371554210,1752346257308,-431.72,0.00019452,2]
[371554211,1752346257318,-151.0,0.00019452,2]
[371554212,1752346257328,-500.0,0.00019452,2]
[371554213,1752346257337,-460.0,0.00019452,2]
[371554214,1752346257346,-151.0,0.00019452,2]
[371554215,1752346257356,-162.06312997,0.00019452,2]
[371554216,1752346257366,-460.0,0.00019452,2]
[371554217,1752346257376,-1054.29,0.00019452,2]
[371554218,1752346257385,-151.0,0.00019452,2]
[371554219,1752346257396,-151.0,0.00019452,2]
[371554220,1752346257407,-151.0,0.00019452,2]
[371554221,1752346257416,-151.0,0.00019452,2]
[371554222,1752346257425,-151.00208844,0.00019452,2]
[371554223,1752346257435,-500.0,0.00019452,2]
[371554224,1752346257444,-151.0,0.00019452,2]
[371554225,1752346257454,-500.0,0.00019452,2]
[371554226,1752346257463,-151.0,0.00019452,2]
[371554227,1752346257472,-151.0,0.00019452,2]
[371554228,1752346257482,-654.76,0.00019452,2]
[371554229,1752346257491,-151.0,0.00019452,2]
[371554230,1752346257502,-460.0,0.00019452,2]
[371554231,1752346257512,-221.25,0.00019452,2]
[371554232,1752346257521,-460.0,0.00019452,2]
[371554233,1752346257531,-460.0,0.00019452,2]
[371554234,1752346257541,-151.0,0.00019452,2]
[371554235,1752346257551,-460.0,0.00019452,2]
[371554236,1752346257560,-500.0,0.00019452,2]
[371554237,1752346257570,-168.11889602,0.00019452,2]
[371554238,1752346257580,-151.74993914,0.00019452,2]
[371554239,1752346257590,-151.0,0.00019452,2]
[371554240,1752346257599,-2105.93,0.00019452,2]
[371554241,1752346257609,-460.0,0.00019452,2]
[371554242,1752346257618,-460.0,0.00019452,2]
[371554243,1752346257628,-460.0,0.00019452,2]
[371554244,1752346257637,-530.01398059,0.00019452,2]
[371554245,1752346257647,-574.78,0.00019452,2]
[371554246,1752346257657,-189.10769702,0.00019452,2]
[371554247,1752346257666,-522.63704269,0.00019452,2]
[371554248,1752346257676,-1182.37,0.00019452,2]
[371554249,1752346257685,-460.0,0.00019452,2]
[371554250,1752346257695,-460.0,0.00019452,2]
[371554251,1752346257704,-460.0,0.00019452,2]
[371554252,1752346257714,-506.15,0.00019452,2]
[371554253,1752346257724,-500.0,0.00019452,2]
[371554254,1752346257734,-151.0,0.00019452,2]
[371554255,1752346257743,-500.0,0.00019452,2]
[371554256,1752346257753,-151.0,0.00019452,2]
[371554257,1752346257762,-151.0,0.00019452,2]
[371554258,1752346257772,-460.0,0.00019452,2]
[371554259,1752346257782,-151.0,0.00019479,2]
[371554260,1752346257791,-151.0,0.00019479,2]
[371554261,1752346257801,-1678.0,0.00019479,2]
[371554262,1752346257810,-151.0,0.00019479,2]
[371554263,1752346257820,-500.0,0.00019479,2]
[371554264,1752346257830,-151.0,0.00019479,2]
[371554265,1752346257839,-500.0,0.00019479,2]
[371554266,1752346257848,-151.0,0.00019479,2]
[371554267,1752346257858,-151.0,0.00019479,2]
[371554268,1752346257867,-151.85317382,0.00019479,2]
[371554269,1752346257876,-151.0,0.00019479,2]
[371554270,1752346257885,-151.0,0.00019479,2]
[371554271,1752346257985,-500.0,0.00019479,2]
[371554272,1752346258004,-151.0,0.00019479,2]
[371554273,1752346258013,-500.0,0.00019479,2]
[371554274,1752346258023,-184.4759593,0.00019479,2]
[371554275,1752346258032,-151.0,0.00019479,2]
[371554276,1752346258041,-151.81118239,0.00019479,2]
[371554277,1752346258051,-151.0,0.00019479,2]
[371554278,1752346258060,-500.0,0.00019479,2]
[371554279,1752346258069,-151.52449373,0.00019479,2]
[371554280,1752346258079,-500.0,0.00019479,2]
[371554281,1752346258090,-500.0,0.00019479,2]
[371554282,1752346258101,-151.0,0.00019479,2]
[371554283,1752346258110,-151.0,0.000195,2]
[371554284,1752346258120,-151.0,0.00019507,2]
[371554285,1752346258130,-151.0,0.00019507,2]
[371554286,1752346258139,-1678.0,0.00019507,2]
[371554287,1752346258148,-151.0,0.00019507,2]
[371554288,1752346258158,-500.0,0.00019507,2]
[371554289,1752346258168,-151.0,0.00019507,2]
[371554290,1752346258177,-500.0,0.00019507,2]
[371554291,1752346258186,-151.0,0.00019507,2]
[371554292,1752346258196,-151.0,0.00019507,2]
[371554293,1752346258208,-151.0,0.00019507,2]
[371554294,1752346258218,-151.0,0.00019507,2]
[371554295,1752346258227,-500.0,0.00019507,2]
[371554296,1752346258237,-151.0,0.00019507,2]
[371554297,1752346258246,-500.0,0.00019507,2]
[371554298,1752346258257,-151.0,0.00019507,2]
[371554299,1752346258267,-151.0,0.00019507,2]
[371554300,1752346258277,-399.32432582,0.00019507,2]
[371554301,1752346258286,-151.0,0.00019507,2]
[371554302,1752346258296,-500.0,0.00019507,2]
[371554303,1752346258306,-151.0,0.00019507,2]
[371554304,1752346258316,-1000.0,0.00019512,2]
[371554305,1752346258326,-151.0,0.00019534,2]
[371554306,1752346258335,-151.0,0.00019534,2]
[371554307,1752346258347,-1678.0,0.00019534,2]
[371554308,1752346258356,-151.0,0.00019534,2]
[371554309,1752346258366,-500.0,0.00019534,2]
[371554310,1752346258376,-151.0,0.00019534,2]
[371554311,1752346258386,-500.0,0.00019534,2]
[371554312,1752346258396,-151.0,0.00019534,2]
[371554313,1752346258405,-151.0,0.00019534,2]
[371554314,1752346258414,-199.04772792,0.00019534,2]
[371554315,1752346258424,-199.92653146,0.00019534,2]
[371554316,1752346258433,-500.0,0.00019534,2]
[371554317,1752346258443,-245.0,0.00019534,2]
[371554318,1752346258452,-407.50494148,0.00019534,2]
[371554319,1752346258463,-151.0,0.00019534,2]
[371554320,1752346258471,-245.0,0.00019534,2]
[371554321,1752346258483,-500.0,0.00019534,2]
[371554322,1752346258492,-151.0,0.00019534,2]
[371554323,1752346258503,-1387.23066608,0.00019555,2]
[371554324,1752346258513,-151.0,0.00019562,2]
[371554325,1752346258525,-200.47644101,0.00019562,2]
[371554326,1752346258534,-1678.0,0.00019562,2]
[371554327,1752346258544,-151.0,0.00019562,2]
[371554328,1752346258554,-500.0,0.00019562,2]
[371554329,1752346258563,-151.0,0.00019562,2]
[371554330,1752346258572,-425.94538351,0.00019562,2]
[371554331,1752346258582,-200.17705806,0.00019562,2]
[371554332,1752346258591,-186.06781658,0.00019562,2]
[371554333,1752346258600,-500.0,0.00019562,2]
[371554334,1752346258610,-151.0,0.00019562,2]
[371554335,1752346258619,-500.0,0.00019562,2]
[371554336,1752346258629,-245.0,0.00019589,2]
[371554337,1752346258638,-1678.0,0.00019589,2]
[371554338,1752346258648,-245.0,0.00019589,2]
[371554339,1752346258657,-500.0,0.00019589,2]
[371554340,1752346258667,-236.98398654,0.00019589,2]
[371554341,1752346258676,-500.0,0.00019589,2]
[371554342,1752346258685,-217.51732538,0.00019589,2]
[371554343,1752346258696,-500.0,0.00019589,2]
[371554344,1752346258705,-1678.0,0.00019616,2]
[371554345,1752346258715,-515.8888344,0.00019616,2]
[371554346,1752346258724,-500.0,0.00019616,2]
[371554347,1752346258734,-500.0,0.00019616,2]
[371554348,1752346258743,-1678.0,0.00019644,2]
[371554349,1752346258753,-278.51430611,0.00019644,2]
[371554350,1752346258763,-254.17189163,0.00019644,2]
[371554351,1752346258772,-915.83,0.00019662,2]
[371554352,1752346258782,-864.3,0.00019662,2]
[371554353,1752346258791,-460.0,0.00019662,2]
[371554354,1752346258802,-1436.56,0.00019662,2]
[371554355,1752346258813,-460.0,0.00019662,2]
[371554356,1752346258823,-631.29,0.00019662,2]
[371554357,1752346258833,-874.74,0.00019662,2]
[371554358,1752346258844,-2721.35,0.00019662,2]
[371554359,1752346258854,-857.84,0.00019662,2]
[371554360,1752346258864,-1678.0,0.00019671,2]
[371554361,1752346258874,-1678.0,0.00019699,2]
[371554362,1752346258885,-1678.0,0.00019726,2]
[371554363,1752346258894,-460.0,0.00019726,2]
[371554364,1752346258903,-460.0,0.00019726,2]
[371554365,1752346258915,-460.0,0.00019726,2]
[371554366,1752346258924,-460.0,0.00019726,2]
[371554367,1752346258934,-460.0,0.00019726,2]
[371554368,1752346258944,-460.0,0.00019726,2]
[371554369,1752346258954,-476.83,0.00019726,2]
[371554370,1752346258963,-460.0,0.00019726,2]
[371554371,1752346258973,-480.52,0.00019726,2]
[371554372,1752346258983,-553.25,0.00019726,2]
[371554373,1752346258992,-505.0,0.00019726,2]
[371554374,1752346259002,-460.0,0.00019726,2]
[371554375,1752346259011,-460.0,0.00019726,2]
[371554376,1752346259021,-460.0,0.00019726,2]
[371554377,1752346259030,-460.0,0.00019726,2]
[371554378,1752346259039,-1040.11,0.00019726,2]
[371554379,1752346259049,-460.0,0.00019726,2]
[371554380,1752346259059,-1869.82,0.00019726,2]
[371554381,1752346259069,-460.0,0.00019726,2]
[371554382,1752346259078,-474.39177621,0.00019726,2]
[371554383,1752346259089,-460.0,0.00019726,2]
[371554384,1752346259100,-1640.32,0.00019726,2]
[371554385,1752346259110,-460.0,0.00019726,2]
[371554386,1752346259119,-1054.29,0.00019726,2]
[371554387,1752346259130,-460.0,0.00019726,2]
[371554388,1752346259141,-654.76,0.00019726,2]
[371554389,1752346259151,-460.0,0.00019726,2]
[371554390,1752346259160,-460.0,0.00019726,2]
[371554391,1752346259171,-460.0,0.00019726,2]
[371554392,1752346259181,-426.69,0.00019726,2]
[371554393,1752346259190,-2105.93,0.00019726,2]
[371554394,1752346259200,-599.36,0.00019726,2]
[371554395,1752346259214,-460.0,0.00019726,2]
[371554396,1752346259223,-460.0,0.00019726,2]
[371554397,1752346259232,-574.78,0.00019726,2]
[371554398,1752346259241,-1182.37,0.00019726,2]
[371554399,1752346259252,-460.0,0.00019726,2]
[371554400,1752346259261,-460.0,0.00019726,2]
[371554401,1752346259270,-460.0,0.00019726,2]
[371554402,1752346259280,-506.15,0.00019726,2]
[371554403,1752346259291,-460.0,0.00019726,2]
[371554404,1752346259300,-500.0,0.00019734,2]
[371554405,1752346259310,-501.9477108,0.00019734,2]
[371554406,1752346259319,-1000.0,0.00019734,2]
[371554407,1752346259328,-500.0,0.00019734,2]
[371554408,1752346259338,-1000.0,0.00019734,2]
[371554409,1752346259347,-1000.0,0.00019734,2]
[371554410,1752346259357,-1000.0,0.00019734,2]
[371554411,1752346259367,-1678.0,0.00019753,2]
[371554412,1752346259377,-151.0,0.00019767,2]
[371554413,1752346259387,-151.0,0.00019767,2]
[371554414,1752346259397,-151.0,0.00019767,2]
[371554415,1752346259407,-151.0,0.00019767,2]
[371554416,1752346259419,-151.0,0.00019767,2]
[371554417,1752346259428,-151.0,0.00019767,2]
[371554418,1752346259438,-165.0,0.00019767,2]
[371554419,1752346259447,-151.0,0.00019767,2]
[371554420,1752346259457,-151.0,0.00019767,2]
[371554421,1752346259466,-151.0,0.00019767,2]
[371554422,1752346259476,-151.0,0.00019767,2]
[371554423,1752346259486,-151.0,0.00019767,2]
[371554424,1752346259496,-207.4,0.00019767,2]
[371554425,1752346259506,-151.0,0.00019767,2]
[371554426,1752346259515,-151.0,0.00019767,2]
[371554427,1752346259525,-151.0,0.00019767,2]
[371554428,1752346259534,-151.0,0.00019767,2]
[371554429,1752346259543,-1678.0,0.00019781,2]
[371554430,1752346259553,-151.0,0.000198,2]
[371554431,1752346259565,-1678.0,0.00019808,2]
[371554432,1752346259575,-1387.23066608,0.00019831,2]
[371554433,1752346259585,-1678.0,0.00019836,2]
[371554434,1752346259595,-1678.0,0.00019863,2]
[371554435,1752346259606,-1678.0,0.0001989,2]
[371554436,1752346259616,-1678.0,0.00019918,2]
[371554437,1752346259625,-915.83,0.00019936,2]
[371554438,1752346259635,-864.3,0.00019936,2]
[371554439,1752346259644,-460.0,0.00019936,2]
[371554440,1752346259654,-1436.56,0.00019936,2]
[371554441,1752346259665,-460.0,0.00019936,2]
[371554442,1752346259674,-631.29,0.00019936,2]
[371554443,1752346259683,-874.74,0.00019936,2]
[371554444,1752346259693,-2721.35,0.00019936,2]
[371554445,1752346259702,-857.84,0.00019936,2]
[371554446,1752346259712,-1678.0,0.00019945,2]
[371554447,1752346259722,-1678.0,0.00019973,2]
[371554448,1752346259731,-194.604778,0.00019998,2]
[371554449,1752346259741,-1678.0,0.0002,2]
[371554450,1752346259750,-460.0,0.0002,2]
[371554451,1752346259759,-460.0,0.0002,2]
[371554452,1752346259769,-460.0,0.0002,2]
[371554453,1752346259778,-476.83,0.0002,2]
[371554454,1752346259787,-460.0,0.0002,2]
[371554455,1752346259797,-480.52,0.0002,2]
[371554456,1752346259807,-553.25,0.0002,2]
[371554457,1752346259816,-505.0,0.0002,2]
[371554458,1752346259826,-460.0,0.0002,2]
[371554459,1752346259835,-460.0,0.0002,2]
[371554460,1752346259844,-460.0,0.0002,2]
[371554461,1752346259855,-183.48523414,0.0002,2]
[371554462,1752346259864,-1040.11,0.0002,2]
[371554463,1752346259874,-460.0,0.0002,2]
[371554464,1752346259883,-1869.82,0.0002,2]
[371554465,1752346259893,-460.0,0.0002,2]
[371554466,1752346259903,-460.0,0.0002,2]
[371554467,1752346259912,-1640.32,0.0002,2]
[371554468,1752346259921,-460.0,0.0002,2]
[371554469,1752346259930,-1054.29,0.0002,2]
[371554470,1752346259940,-460.0,0.0002,2]
[371554471,1752346259949,-654.76,0.0002,2]
[371554472,1752346259959,-460.0,0.0002,2]
[371554473,1752346259969,-460.0,0.0002,2]
[371554474,1752346259978,-460.0,0.0002,2]
[371554475,1752346259988,-2105.93,0.0002,2]
[371554476,1752346259997,-460.0,0.0002,2]
[371554477,1752346260007,-574.78,0.0002,2]
[371554478,1752346260016,-1182.37,0.0002,2]
[371554479,1752346260025,-213.94,0.0002,2]
[371554480,1752346260035,-460.0,0.0002,2]
[371554481,1752346260045,-460.0,0.0002,2]
[371554482,1752346260056,-506.15,0.0002,2]